bitfinex-derivatives/quotes_SOLF0:USTF0_20241002
["timestamp","ask_amount","ask_price","bid_price","bid_amount"]
[1727881450175,0.12502,146.03,146.0,26.4]
[1727881450379,0.12502,146.03,146.01,6.68]
[1727881450887,0.12502,146.03,146.02,26.4]
[1727881451391,1.2717,146.08,146.02,26.4]
[1727881451778,0.12502,146.09,146.04,29.8238]
[1727881451981,0.12502,146.09,146.05,6.68]
[1727881452287,0.12502,146.09,146.04,26.4]
[1727881452594,0.12502,146.09,146.05,6.68]
[1727881452981,0.12502,146.09,146.04,26.4]
[1727881453278,0.12502,146.09,146.05,6.68]
[1727881453591,0.12502,146.09,146.04,26.4]
[1727881453772,0.12502,146.09,146.03,6.68]
[1727881453980,0.12502,146.09,145.97,26.52502]
[1727881454186,0.12502,146.09,145.98,7.06]
[1727881454488,3.4239,146.04,145.98,7.06]
[1727881454992,3.4237,146.05,146.0,3.4248]
[1727881455381,1.2846,146.07,145.98,7.06]
[1727881455782,1.3334,146.06,145.98,7.06]
[1727881455983,3.4239,146.04,145.99,3.4248]
[1727881456281,1.3334,146.06,145.98,7.06]
[1727881456483,4.7569,146.06,146.01,3.4245]
[1727881456777,1.3334,146.06,146.0,26.4]
[1727881456980,1.3334,146.06,146.02,3.4241]
[1727881457384,1.3334,146.06,146.0,26.4]
[1727881457592,1.3334,146.06,146.03,3.424]
[1727881457889,3.4243,146.03,146.0,7.06]
[1727881458082,1.3334,146.06,146.0,10.4847]
[1727881458284,1.3334,146.06,146.0,7.06]
[1727881458489,3.4239,146.04,146.0,7.06]
[1727881458790,3.4239,146.04,146.0,10.4846]
[1727881459091,3.4239,146.04,146.0,10.4847]
[1727881459296,3.4241,146.03,146.0,10.4847]
[1727881459880,3.46106431,146.04,145.97,0.12502]
[1727881460193,1.3334,146.06,145.97,0.12502]
[1727881460488,1.3334,146.06,145.97,3.55042]
[1727881460886,1.3334,146.06,145.97,0.12502]
[1727881461091,1.3334,146.06,146.01,26.4]
[1727881461397,1.3334,146.06,146.01,33.46]
[1727881461588,1.2846,146.07,146.04,3.4238]
[1727881462289,1.2846,146.07,146.01,33.46]
[1727881462290,1.3426,146.08,146.05,3.4236]
[1727881462879,0.12502,146.09,146.05,3.4236]
[1727881463791,0.12502,146.09,146.01,33.46]
[1727881463792,0.12502,146.09,146.06,3.4233]
[1727881464893,0.12502,146.09,146.07,3.4231]
[1727881466396,0.12502,146.09,146.06,3.4233]
[1727881466582,0.12502,146.09,146.05,7.06]
[1727881466583,3.423,146.08,146.05,7.06]
[1727881466893,0.12502,146.09,146.05,3.4236]
[1727881467594,3.423,146.08,146.05,3.4236]
[1727881467896,0.12502,146.09,146.06,3.4232]
[1727881468191,3.54772,146.09,146.04,7.06]
[1727881468587,3.54772,146.09,146.06,3.4231]
[1727881468895,3.4232,146.07,146.04,7.06]
[1727881469688,0.12502,146.09,146.04,10.4837]
[1727881469884,0.12502,146.09,146.04,7.06]
[1727881470088,0.12502,146.09,146.03,26.4]
[1727881470289,3.54782,146.09,146.03,26.4]
[1727881470890,0.12502,146.09,146.03,26.4]
[1727881471090,3.423,146.08,146.03,26.4]
[1727881471287,0.12502,146.09,146.03,26.4]
[1727881471494,3.54782,146.09,146.03,26.4]
[1727881471896,0.12502,146.09,146.02,7.04]
[1727881472495,0.12502,146.09,146.02,10.4643]
[1727881472687,0.12502,146.09,146.02,7.04]
[1727881473107,3.4235,146.06,146.03,3.4239]
[1727881473411,0.12502,146.09,146.02,7.04]
[1727881473700,0.12502,146.09,146.02,33.44]
[1727881474200,3.423,146.08,146.06,3.4233]
[1727881474395,0.12502,146.09,146.04,26.4]
[1727881474793,3.54792,146.09,146.04,26.4]
[1727881475093,3.54792,146.09,146.06,3.4232]
[1727881475294,0.12502,146.09,146.04,26.4]
[1727881476000,3.54782,146.09,146.06,3.4232]
[1727881476301,3.54782,146.09,146.04,26.4]
[1727881476302,0.12502,146.09,146.04,26.4]
[1727881476494,3.423,146.08,146.05,3.4235]
[1727881477302,0.12502,146.09,146.04,26.4]
[1727881477806,0.12502,146.09,146.05,3.4235]
[1727881478003,0.12502,146.09,146.04,26.4]
[1727881478505,0.12502,146.09,146.07,3.4231]
[1727881480003,3.54772,146.09,146.06,3.4233]
[1727881480302,0.12502,146.09,146.04,26.4]
[1727881480701,3.54782,146.09,146.05,3.4235]
[1727881481003,0.12502,146.09,146.04,26.4]
[1727881481196,0.12502,146.09,146.05,3.4235]
[1727881481197,3.4231,146.08,146.05,3.4235]
[1727881481705,3.4231,146.08,146.05,19.8435]
[1727881481905,3.54772,146.09,146.06,3.4233]
[1727881482400,3.4229,146.08,146.05,19.8435]
[1727881482901,3.54782,146.09,146.07,16.42]
[1727881483096,0.12502,146.09,146.07,16.42]
[1727881483425,0.12502,146.09,146.08,16.42]
[1727881483601,0.12502,146.09,146.08,19.8429]
[1727881484901,0.12502,146.15,146.11,3.4222]
[1727881485510,0.12502,146.15,146.1,19.8423]
[1727881485905,3.4218,146.13,146.11,3.4221]
[1727881486408,0.12502,146.15,146.11,3.4221]
[1727881486602,3.4216,146.14,146.11,3.4221]
[1727881487002,0.12502,146.15,146.1,16.42]
[1727881487412,0.12502,146.15,146.1,19.8423]
[1727881487808,0.12502,146.15,146.1,16.42]
[1727881488002,3.4216,146.14,146.11,3.4221]
[1727881488721,0.12502,146.15,146.1,19.8423]
[1727881489310,3.4219,146.13,146.1,19.8423]
[1727881490012,3.4219,146.13,146.11,3.4222]
[1727881490402,3.4219,146.13,146.1,16.42]
[1727881490603,0.12502,146.15,146.1,19.8423]
[1727881490818,3.4221,146.12,146.1,16.42]
[1727881491812,3.4221,146.12,146.1,19.8423]
[1727881492815,3.4218,146.13,146.1,19.8423]
[1727881493003,3.4218,146.13,146.11,3.4222]
[1727881493615,3.4216,146.14,146.1,16.42]
[1727881493818,0.12502,146.15,146.1,16.42]
[1727881494110,0.12502,146.15,146.13,16.42]
[1727881494909,3.54642,146.15,146.13,16.42]
[1727881495610,3.54642,146.15,146.13,19.8417]
[1727881498715,0.12502,146.15,146.13,16.42]
[1727881498915,3.4215,146.14,146.13,16.42]
[1727881500517,0.12502,146.15,146.11,16.42]
[1727881500718,3.4223,146.11,146.09,19.8426]
[1727881501021,0.12502,146.15,146.09,19.8426]
[1727881501215,0.12502,146.15,146.07,16.42]
[1727881501418,0.12502,146.15,146.05,16.42]
[1727881501719,0.12502,146.15,146.09,16.42]
[1727881501912,0.12502,146.15,146.11,16.42]
[1727881502420,0.12502,146.15,146.13,3.4217]
[1727881502421,3.54642,146.15,146.13,3.4217]
[1727881502721,0.12502,146.15,146.13,16.42]
[1727881503111,3.54632,146.15,146.13,19.8417]
[1727881503425,0.12502,146.15,146.13,19.8417]
[1727881503620,0.12502,146.15,146.13,16.42]
[1727881504214,0.12502,146.15,146.14,19.8415]
[1727881504425,0.12502,146.21,146.14,19.8415]
[1727881504426,0.12502,146.21,146.14,16.42]
[1727881504616,0.12502,146.21,146.18,16.42]
[1727881504820,0.12502,146.21,146.18,19.8405]
[1727881505012,0.12502,146.21,146.18,16.42]
[1727881505622,0.12502,146.27,146.2,16.42]
[1727881505813,0.12502,146.27,146.22,16.42]
[1727881506721,3.4188,146.26,146.22,19.8395]
[1727881507111,3.4188,146.26,146.22,16.42]
[1727881507722,0.12502,146.27,146.22,19.8395]
[1727881507925,3.4194,146.23,146.2,23.38]
[1727881508124,0.12502,146.27,146.2,16.42]
[1727881508319,16.54502,146.27,146.18,23.38]
[1727881508624,0.12502,146.27,146.2,19.8399]
[1727881508819,7.08502,146.27,146.22,16.42]
[1727881509029,0.12502,146.27,146.22,16.42]
[1727881509228,3.4189,146.25,146.22,16.42]
[1727881509430,0.12502,146.27,146.24,16.42]
[1727881510315,3.54352,146.27,146.24,16.42]
[1727881510626,0.12502,146.27,146.24,16.42]
[1727881511620,0.12502,146.27,146.25,3.4188]
[1727881511819,0.12502,146.27,146.23,26.24]
[1727881512126,0.12502,146.27,146.23,29.61492717]
[1727881513316,0.12502,146.27,146.26,29.6587]
[1727881513523,0.12502,146.33,146.26,32.94]
[1727881513818,0.12502,146.33,146.26,36.36690173]
[1727881514122,0.12502,146.33,146.28,26.24]
[1727881514323,0.12502,146.33,146.3,26.24]
[1727881514518,0.12502,146.33,146.3,6.7]
[1727881515122,3.54222,146.33,146.3,10.1177]
[1727881515319,0.12502,146.33,146.3,6.7]
[1727881516122,0.12502,146.33,146.31,3.4175]
[1727881516526,0.12502,146.33,146.3,6.7]
[1727881516734,3.54222,146.33,146.3,6.7]
[1727881517033,0.12502,146.33,146.3,6.7]
[1727881517228,3.4173,146.32,146.3,6.7]
[1727881517431,0.12502,146.33,146.3,6.7]
[1727881517928,0.12502,146.33,146.27,26.24]
[1727881518128,0.12502,146.33,146.25,6.7]
[1727881519125,0.12502,146.33,146.27,26.24]
[1727881519919,0.12502,146.33,146.3,26.24]
[1727881520125,1.47352,146.39,146.32,26.24]
[1727881520325,1.47352,146.39,146.32,29.73522303]
[1727881520530,0.12502,146.39,146.34,26.24]
[1727881520728,0.12502,146.39,146.35,6.7]
[1727881520936,0.12502,146.39,146.38,3.4159]
[1727881521233,0.12502,146.45,146.37,26.24]
[1727881521436,0.12502,146.45,146.41,26.24]
[1727881521942,0.12502,146.45,146.4,6.7]
[1727881521943,0.12502,146.45,146.43,26.24]
[1727881522134,0.12502,146.45,146.44,6.7]
[1727881523837,0.12502,146.45,146.44,10.1145]
[1727881524038,0.12502,146.45,146.44,6.7]
[1727881524641,3.4135,146.49,146.44,6.7]
[1727881525244,3.4136,146.48,146.44,10.1145]
[1727881525743,3.4134,146.49,146.44,10.1145]
[1727881525937,0.12502,146.51,146.44,6.7]
[1727881526146,0.12502,146.51,146.46,26.24]
[1727881526343,0.12502,146.51,146.46,32.94]
[1727881526538,3.4133,146.49,146.46,32.94]
[1727881527044,0.12502,146.51,146.44,26.24]
[1727881527233,0.12502,146.51,146.44,32.94]
[1727881527641,3.4138,146.48,146.44,36.3544]
[1727881527841,0.12502,146.51,146.44,36.3544]
[1727881528048,3.4138,146.47,146.44,36.3544]
[1727881528346,0.12502,146.51,146.45,3.4141]
[1727881528847,0.12502,146.51,146.44,32.94]
[1727881529743,0.12502,146.51,146.41,26.24]
[1727881529945,0.12502,146.51,146.42,6.7]
[1727881530150,3.4147,146.44,146.42,6.7]
[1727881530446,3.34550351,146.49,146.42,6.7]
[1727881530641,0.12502,146.51,146.42,6.7]
[1727881530841,0.12502,146.51,146.39,26.36502]
[1727881530842,26.24,146.5,146.39,0.12502]
[1727881531446,0.12502,146.51,146.39,0.12502]
[1727881531447,26.24,146.48,146.39,0.12502]
[1727881531651,8.4522,146.47,146.39,0.12502]
[1727881531945,3.4151,146.42,146.39,0.12502]
[1727881532150,2.6051,146.46,146.39,0.12502]
[1727881533154,3.4145,146.44,146.39,0.12502]
[1727881533349,2.6051,146.46,146.4,3.4153]
[1727881533549,3.4144,146.45,146.4,3.4153]
[1727881533746,2.6051,146.46,146.39,26.36502]
[1727881533950,1.2825,146.46,146.39,26.36502]
[1727881534358,1.2825,146.46,146.41,3.4152]
[1727881534559,1.2825,146.46,146.39,26.36502]
[1727881534859,3.4145,146.44,146.39,26.36502]
[1727881535046,1.2825,146.46,146.39,26.36502]
[1727881535847,3.4152,146.42,146.39,26.36502]
[1727881536352,3.4152,146.42,146.39,29.78062]
[1727881536653,3.4154,146.4,146.39,0.12502]
[1727881537651,3.4153,146.41,146.39,0.12502]
[1727881538049,8.3825,146.46,146.39,0.12502]
[1727881538354,3.4153,146.41,146.39,0.12502]
[1727881538749,8.3825,146.46,146.39,0.12502]
[1727881539050,3.4154,146.4,146.39,0.12502]
[1727881539251,3.48056937,146.4,146.32,26.24]
[1727881539452,3.4168,146.34,146.32,26.24]
[1727881539652,1.2807,146.39,146.32,26.24]
[1727881540249,3.4162,146.37,146.32,26.24]
[1727881540449,1.2807,146.39,146.36,3.4163]
[1727881540750,3.4155,146.4,146.34,26.24]
[1727881541054,7.1,146.43,146.35,3.4165]
[1727881541255,3.416,146.38,146.35,3.4165]
[1727881541461,7.1,146.43,146.34,26.24]
[1727881541760,3.4159,146.38,146.34,26.24]
[1727881541956,7.1,146.43,146.34,26.24]
[1727881542465,7.1,146.43,146.35,3.4165]
[1727881542849,3.4165,146.36,146.33,3.54202]
[1727881543064,3.43412771,146.4,146.33,0.12502]
[1727881543267,1.2986,146.39,146.33,0.12502]
[1727881543458,1.2986,146.39,146.33,3.54202]
[1727881543962,3.4165,146.36,146.33,3.54202]
[1727881544360,1.2986,146.39,146.33,0.12502]
[1727881544960,1.2986,146.39,146.34,3.4167]
[1727881545158,3.4163,146.37,146.34,3.4167]
[1727881545455,1.2986,146.39,146.34,3.4167]
[1727881545658,3.416,146.38,146.34,3.4167]
[1727881545862,1.2986,146.39,146.34,3.4167]
[1727881546258,3.4163,146.37,146.34,3.4167]
[1727881547154,1.3909,146.42,146.34,26.24]
[1727881547360,1.3909,146.42,146.36,3.4163]
[1727881547561,1.3909,146.42,146.34,26.24]
[1727881547856,1.3909,146.42,146.33,0.12502]
[1727881547857,3.4158,146.39,146.37,16.4]
[1727881548053,1.3909,146.42,146.37,16.4]
[1727881548762,3.4159,146.38,146.37,16.4]
[1727881550566,3.4159,146.38,146.35,19.8164]
[1727881550754,3.4157,146.39,146.35,16.4]
[1727881551058,3.4157,146.39,146.36,3.4162]
[1727881551257,3.4157,146.39,146.35,16.4]
[1727881551258,16.4,146.39,146.33,0.12502]
[1727881551468,3.4168,146.34,146.33,0.12502]
[1727881551960,7.1,146.36,146.27,104.46807006]
[1727881552154,1.3267,146.33,146.27,104.46807006]
[1727881552561,1.3267,146.33,146.27,23.62502]
[1727881553065,3.4182,146.29,146.27,23.62502]
[1727881553659,3.4177,146.31,146.27,7.22502]
[1727881554070,1.3267,146.33,146.27,7.22502]
[1727881554263,3.4179,146.3,146.27,7.22502]
[1727881554772,3.4179,146.3,146.27,10.64332]
[1727881554972,3.4182,146.28,146.27,0.12502]
[1727881555364,7.1,146.28,146.21,0.12502]
[1727881555557,26.27,146.31,146.21,0.12502]
[1727881555772,7.1,146.3,146.21,0.12502]
[1727881555958,3.4191,146.25,146.22,3.4195]
[1727881556273,7.1,146.3,146.21,0.12502]
[1727881556460,27.72172,146.33,146.21,26.39502]
[1727881556657,3.4182,146.28,146.21,26.39502]
[1727881557160,1.3487,146.32,146.23,26.27]
[1727881558367,1.3487,146.32,146.24,7.1]
[1727881559057,1.3487,146.32,146.26,26.27]
[1727881559257,1.45172,146.33,146.26,26.27]
[1727881559666,1.45172,146.33,146.29,3.4179]
[1727881559866,1.45172,146.33,146.26,26.27]
[1727881560368,0.12502,146.33,146.26,26.27]
[1727881560970,3.54222,146.33,146.29,3.4178]
[1727881561167,0.12502,146.33,146.28,7.38]
[1727881561367,0.12502,146.33,146.29,26.27]
[1727881561562,0.12502,146.33,146.31,3.4173]
[1727881561771,0.12502,146.33,146.29,26.27]
[1727881562663,3.4162,146.37,146.31,26.27]
[1727881562862,1.2897,146.4,146.34,26.27]
[1727881563974,1.3021,146.42,146.34,26.27]
[1727881565267,3.4155,146.4,146.34,26.27]
[1727881565570,1.2897,146.44,146.36,26.27]
[1727881565770,3.4147,146.43,146.38,3.4159]
[1727881565962,0.12502,146.45,146.38,26.27]
[1727881566366,0.12502,146.45,146.37,7.38]
[1727881566970,0.12502,146.45,146.33,27.72802]
[1727881566971,26.39502,146.45,146.33,27.72802]
[1727881567168,26.27,146.43,146.34,7.38]
[1727881567672,1.3023,146.42,146.34,7.38]
[1727881567970,3.33139773,146.41,146.33,3.54202]
[1727881568175,1.3266,146.41,146.33,0.12502]
[1727881568371,3.37238693,146.4,146.33,0.12502]
[1727881568771,3.4167,146.35,146.33,0.12502]
[1727881569269,1.3516,146.39,146.33,0.12502]
[1727881569475,26.27,146.38,146.33,0.12502]
[1727881569869,3.4168,146.34,146.33,0.12502]
[1727881570177,7.38,146.37,146.27,7.50502]
[1727881570378,3.4176,146.31,146.27,7.50502]
[1727881570688,7.38,146.37,146.27,7.50502]
[1727881570971,3.418,146.29,146.27,7.50502]
[1727881571175,26.27,146.36,146.27,7.50502]
[1727881571574,26.27,146.36,146.27,0.12502]
[1727881572382,3.4179,146.3,146.27,0.12502]
[1727881572582,7.38,146.33,146.27,0.12502]
[1727881572772,1.2663,146.32,146.27,0.12502]
[1727881572968,3.4182,146.29,146.27,0.12502]
[1727881573174,2.6298,146.32,146.27,0.12502]
[1727881573476,3.48943734,146.31,146.27,0.12502]
[1727881573773,26.27,146.31,146.21,0.12502]
[1727881574179,3.4193,146.24,146.21,3.54482]
[1727881574380,7.38,146.29,146.21,0.12502]
[1727881574876,7.38,146.29,146.22,3.4195]
[1727881575075,7.38,146.29,146.21,0.12502]
[1727881575280,3.4187,146.26,146.21,0.12502]
[1727881576270,3.4187,146.26,146.23,3.4192]
[1727881576668,3.419,146.25,146.21,0.12502]
[1727881576874,7.38,146.29,146.21,3.54482]
[1727881577381,3.4192,146.24,146.21,3.54482]
[1727881577779,7.38,146.29,146.21,0.12502]
[1727881577979,3.4191,146.25,146.22,3.4196]
[1727881578176,7.38,146.29,146.21,0.12502]
[1727881578780,1.3991,146.28,146.21,0.12502]
[1727881578982,3.4196,146.22,146.21,0.12502]
[1727881579376,26.27,146.27,146.15,26.39502]
[1727881579377,26.27,146.24,146.15,0.12502]
[1727881579577,2.6934,146.23,146.15,0.12502]
[1727881580180,3.4205,146.19,146.16,3.421]
[1727881580381,2.6934,146.23,146.15,0.12502]
[1727881580987,3.4205,146.19,146.15,3.54612]
[1727881581285,2.6934,146.23,146.15,0.12502]
[1727881581483,3.4201,146.2,146.15,0.12502]
[1727881581683,33.65,146.22,146.15,0.12502]
[1727881582090,3.421,146.16,146.15,0.12502]
[1727881586796,7.38,146.18,146.15,0.12502]
[1727881586991,7.38,146.18,146.15,3.54612]
[1727881587293,3.4205,146.19,146.15,0.12502]
[1727881587490,8.6478,146.21,146.15,0.12502]
[1727881587700,8.6478,146.21,146.15,3.54622]
[1727881587995,3.421,146.16,146.15,0.12502]
[1727881588192,26.27,146.2,146.09,0.12502]
[1727881588590,3.4214,146.15,146.12,3.422]
[1727881589196,26.27,146.2,146.12,3.422]
[1727881589699,8.77282,146.21,146.09,26.39502]
[1727881590090,1.39282,146.21,146.12,26.27]
[1727881590297,7.1,146.2,146.12,26.27]
[1727881590595,3.4208,146.17,146.14,3.4214]
[1727881591091,3.4208,146.17,146.12,26.27]
[1727881591292,3.4208,146.17,146.14,3.4213]
[1727881591489,7.1,146.2,146.14,3.4213]
[1727881591796,3.421,146.16,146.13,3.4216]
[1727881591991,7.1,146.2,146.13,3.4216]
[1727881592192,3.4212,146.16,146.13,3.4216]
[1727881593791,3.4207,146.18,146.12,26.27]
[1727881594394,1.39282,146.21,146.15,26.27]
[1727881594799,3.4201,146.2,146.17,3.4207]
[1727881595505,1.39282,146.21,146.15,26.27]
[1727881595692,3.4207,146.18,146.15,29.6911]
[1727881595996,1.39282,146.21,146.15,26.27]
[1727881596204,1.39282,146.21,146.12,26.27]
[1727881596516,6.8407,146.19,146.09,0.12502]
[1727881596799,3.4222,146.12,146.09,3.54752]
[1727881596994,3.4222,146.12,146.09,0.12502]
[1727881597594,3.4224,146.11,146.09,0.12502]
[1727881598692,1.3015,146.14,146.09,3.54752]
[1727881598888,3.4221,146.12,146.09,3.54752]
[1727881599100,1.3015,146.14,146.09,0.12502]
[1727881599300,2.6908,146.14,146.09,0.12502]
[1727881599503,3.4224,146.1,146.09,0.12502]
[1727881600094,26.27,146.13,146.03,81.09423702]
[1727881600300,26.27,146.13,146.03,0.12502]
[1727881600301,3.4234,146.06,146.03,0.12502]
[1727881600803,1.3108,146.09,146.03,0.12502]
[1727881602200,3.4236,146.06,146.03,3.54902]
[1727881602397,1.3108,146.09,146.03,0.12502]
[1727881602702,3.4232,146.07,146.04,3.4237]
[1727881603295,1.3108,146.09,146.03,0.12502]
[1727881604096,3.4234,146.07,146.03,3.54892]
[1727881604302,1.3108,146.09,146.03,3.54892]
[1727881605392,3.4235,146.06,146.03,3.54892]
[1727881606704,1.3108,146.09,146.03,0.12502]
[1727881607005,1.3108,146.09,146.04,26.27]
[1727881607200,1.3108,146.09,146.05,3.4235]
[1727881607394,1.3108,146.09,146.04,26.27]
[1727881607591,2.6908,146.14,146.04,26.27]
[1727881607792,3.4222,146.11,146.08,3.4228]
[1727881607998,4.0884,146.14,146.04,26.27]
[1727881608198,4.0884,146.14,146.06,26.27]
[1727881608609,4.0884,146.14,146.07,7.12]
[1727881609005,4.0884,146.14,146.1,3.4223]
[1727881609204,4.0884,146.14,146.07,7.12]
[1727881610102,4.0884,146.14,146.09,3.4225]
[1727881610407,4.0884,146.14,146.08,26.27]
[1727881610408,2.6991,146.14,146.08,26.27]
[1727881610602,6.1206,146.14,146.12,3.4219]
[1727881610800,0.12502,146.15,146.08,26.27]
[1727881611104,0.12502,146.15,146.14,3.4215]
[1727881614299,2.5851,146.22,146.13,26.27]
[1727881614604,2.5851,146.22,146.18,3.4205]
[1727881614996,4.7,146.22,146.16,7.12]
[1727881615197,1.2803,146.22,146.16,7.12]
[1727881615510,3.54502,146.21,146.16,7.12]
[1727881616307,3.54502,146.21,146.18,3.4204]
[1727881617401,0.12502,146.21,146.16,7.12]
[1727881617817,0.12502,146.21,146.13,7.12]
[1727881618004,3.4204,146.19,146.14,3.4214]
[1727881618204,0.12502,146.21,146.14,3.4214]
[1727881618909,0.12502,146.21,146.15,3.4212]
[1727881619509,3.4207,146.18,146.15,3.4212]
[1727881619723,0.12502,146.21,146.17,3.4208]
[1727881619909,3.4204,146.19,146.13,7.12]
[1727881620304,3.4204,146.19,146.16,3.4208]
[1727881620509,0.12502,146.21,146.09,0.12502]
[1727881620704,3.4206,146.18,146.1,8.21723176]
[1727881620915,0.12502,146.21,146.13,3.4217]
[1727881621116,0.12502,146.21,146.14,6.96]
[1727881621407,0.12502,146.21,146.15,6.96]
[1727881622208,3.4204,146.19,146.16,3.4209]
[1727881622413,0.12502,146.21,146.09,0.12502]
[1727881622618,6.96,146.2,146.09,0.12502]
[1727881622914,1.2788,146.19,146.09,0.12502]
[1727881623314,1.2788,146.19,146.1,1.25730131]
[1727881623608,1.2788,146.19,146.09,0.12502]
[1727881624006,3.4224,146.1,146.09,0.12502]
[1727881625015,3.9137,146.12,146.09,0.12502]
[1727881625507,5.983,146.12,146.09,3.54762]
[1727881625707,1.3528,146.2,146.09,0.12502]
[1727881625913,1.3528,146.2,146.09,7.08502]
[1727881625914,6.96,146.19,146.09,7.08502]
[1727881626516,3.421,146.16,146.09,7.08502]
[1727881626824,6.96,146.19,146.09,7.08502]
[1727881627019,3.421,146.16,146.1,3.4222]
[1727881627319,6.96,146.19,146.09,7.08502]
[1727881627723,3.944,146.2,146.09,7.08502]
[1727881627913,6.96,146.19,146.09,7.08502]
[1727881628313,3.4215,146.14,146.12,3.4219]
[1727881628518,6.96,146.19,146.09,7.08502]
[1727881628817,3.421,146.16,146.11,3.4222]
[1727881629019,6.96,146.19,146.09,7.08502]
[1727881629431,3.4217,146.14,146.11,3.4221]
[1727881630015,6.96,146.19,146.09,7.08502]
[1727881630220,3.4214,146.15,146.12,3.422]
[1727881630422,6.96,146.19,146.09,7.08502]
[1727881630819,3.4216,146.14,146.11,3.4221]
[1727881631021,3.4216,146.14,146.09,7.08502]
[1727881631516,3.944,146.2,146.09,7.08502]
[1727881631919,3.944,146.2,146.15,3.4211]
[1727881632114,3.4205,146.19,146.09,7.08502]
[1727881632314,0.12502,146.21,146.1,6.8449]
[1727881632509,0.12502,146.21,146.16,3.4209]
[1727881633226,3.4205,146.19,146.16,3.4209]
[1727881633526,0.12502,146.21,146.15,6.96]
[1727881633821,3.4213,146.15,146.09,0.12502]
[1727881634009,3.4213,146.15,146.1,6.96]
[1727881634214,0.12502,146.21,146.1,6.96]
[1727881635022,3.421,146.17,146.13,3.4217]
[1727881635318,0.12502,146.21,146.14,6.96]
[1727881635521,0.12502,146.21,146.15,6.96]
[1727881636019,3.4203,146.2,146.15,6.96]
[1727881636225,0.12502,146.21,146.12,6.96]
[1727881636718,7.08502,146.21,146.09,0.12502]
[1727881637118,3.4219,146.13,146.1,3.4223]
[1727881637316,7.08502,146.21,146.09,0.12502]
[1727881637620,3.4217,146.13,146.11,3.4221]
[1727881637824,7.08502,146.21,146.09,0.12502]
[1727881638023,6.8403,146.2,146.09,0.12502]
[1727881638219,3.4221,146.12,146.09,3.54752]
[1727881638729,6.96,146.16,146.09,0.12502]
[1727881638924,3.4215,146.14,146.11,3.4221]
[1727881639120,6.96,146.16,146.11,3.4221]
[1727881640230,10.44401888,146.16,146.09,3.54762]
[1727881640420,10.44401888,146.16,146.09,0.12502]
[1727881640727,6.96,146.16,146.09,0.12502]
[1727881641027,3.4219,146.13,146.1,3.4223]
[1727881641221,3.4219,146.13,146.09,0.12502]
[1727881642016,6.96,146.16,146.09,0.12502]
[1727881642525,6.96,146.19,146.09,0.12502]
[1727881643220,0.12502,146.21,146.09,0.12502]
[1727881643528,3.4214,146.15,146.12,3.4219]
[1727881643730,6.96,146.2,146.09,0.12502]
[1727881644524,3.4212,146.16,146.09,0.12502]
[1727881644720,6.96,146.2,146.09,0.12502]
[1727881645322,3.4213,146.15,146.12,3.4219]
[1727881646029,3.4217,146.14,146.11,3.4221]